[Event "Early-Titled-Tuesday-Blitz-March-05-2024"]
[Site "Chess.com"]
[Date "2024.03.05"]
[Round "6"]
[White "ChessQueen"]
[Black "Bilan_Danila"]
[Result "1-0"]
[WhiteElo "2771"]
[BlackElo "2539"]
[TimeControl "180+1"]
[EndTime "9:08:17 PST"]
[Termination "ChessQueen won on time"]

1. e4 {[%clk 0:03:00.9]} 1... c6 {[%clk 0:03:00.1]} 2. d4 {[%clk 0:02:58.5]}
2... d5 {[%clk 0:03:00.2]} 3. e5 {[%clk 0:02:59.1]} 3... c5 {[%clk 0:02:54.9]}
4. dxc5 {[%clk 0:02:58.2]} 4... Nc6 {[%clk 0:02:55]} 5. Nf3 {[%clk 0:02:54.4]}
5... Bg4 {[%clk 0:02:54.3]} 6. Bb5 {[%clk 0:02:43.9]} 6... e6 {[%clk 0:02:52.8]}
7. Be3 {[%clk 0:02:33.4]} 7... Ne7 {[%clk 0:02:40.8]} 8. c3 {[%clk 0:02:25.8]}
8... Nf5 {[%clk 0:02:37.9]} 9. Bxc6+ {[%clk 0:02:21.1]} 9... bxc6 {[%clk
0:02:35]} 10. Qa4 {[%clk 0:02:21.3]} 10... Bxf3 {[%clk 0:02:03.1]} 11. Qxc6+
{[%clk 0:02:17.4]} 11... Ke7 {[%clk 0:01:58.4]} 12. gxf3 {[%clk 0:02:09.9]}
12... Rc8 {[%clk 0:01:50.5]} 13. Qb7+ {[%clk 0:02:04.4]} 13... Rc7 {[%clk
0:01:44.2]} 14. Qa6 {[%clk 0:01:58.9]} 14... Nxe3 {[%clk 0:01:04.2]} 15. fxe3
{[%clk 0:01:59.8]} 15... Rxc5 {[%clk 0:00:49.8]} 16. Qxa7+ {[%clk 0:01:56.6]}
16... Rc7 {[%clk 0:00:49.6]} 17. Qa4 {[%clk 0:01:54.4]} 17... Rc4 {[%clk
0:00:43.8]} 18. Qa7+ {[%clk 0:01:47.7]} 18... Rc7 {[%clk 0:00:43.4]} 19. Qb6
{[%clk 0:01:46.4]} 19... Ke8 {[%clk 0:00:39.9]} 20. Qb5+ {[%clk 0:01:34.8]}
20... Rd7 {[%clk 0:00:28.9]} 21. Nd2 {[%clk 0:01:30]} 21... Qh4+ {[%clk
0:00:25]} 22. Ke2 {[%clk 0:01:30.3]} 22... Be7 {[%clk 0:00:14.8]} 23. Rag1
{[%clk 0:01:23.7]} 23... g6 {[%clk 0:00:13.5]} 24. Rg4 {[%clk 0:01:19.4]} 24...
Qh5 {[%clk 0:00:13.2]} 25. Ra4 {[%clk 0:01:19.1]} 25... Qxe5 {[%clk 0:00:08.3]}
26. Ra8+ {[%clk 0:01:11.6]} 26... Bd8 {[%clk 0:00:08.5]} 27. Nb3 {[%clk
0:01:07]} 27... Ke7 {[%clk 0:00:05]} 28. Nd4 {[%clk 0:01:04.5]} 28... Rc7 {[%clk
0:00:01.9]} 29. Nc6+ {[%clk 0:00:56.5]} 29... Rxc6 {[%clk 0:00:02.4]} 30. Qxc6
{[%clk 0:00:57.4]} 30... Bb6 {[%clk 0:00:03.3]} 31. Qxb6 {[%clk 0:00:54.9]}
31... Rxa8 {[%clk 0:00:03]} 32. Qb7+ {[%clk 0:00:55.5]} 1-0

[Event "Early-Titled-Tuesday-Blitz-March-05-2024"]
[Site "Chess.com"]
[Date "2024.03.05"]
[Round "6"]
[White "Dale"]
[Black "Pasmendjambvirgulptipon98"]
[Result "1-0"]
[WhiteElo "2111"]
[BlackElo "2303"]
[TimeControl "180+1"]
[EndTime "9:08:18 PST"]
[Termination "Dale won on time"]

1. Nf3 {[%clk 0:03:00.9]} 1... Nf6 {[%clk 0:03:00.1]} 2. h3 {[%clk 0:03:01.2]}
2... d5 {[%clk 0:02:59.2]} 3. g4 {[%clk 0:03:01.1]} 3... e6 {[%clk 0:02:56.1]}
4. d3 {[%clk 0:03:00.5]} 4... h6 {[%clk 0:02:54.1]} 5. Bd2 {[%clk 0:03:00.4]}
5... c5 {[%clk 0:02:53.8]} 6. c3 {[%clk 0:03:00.7]} 6... Nc6 {[%clk 0:02:54.4]}
7. a3 {[%clk 0:02:59.2]} 7... Be7 {[%clk 0:02:52.5]} 8. b4 {[%clk 0:02:59.1]}
8... b6 {[%clk 0:02:51.2]} 9. Rg1 {[%clk 0:02:41.8]} 9... Bb7 {[%clk 0:02:48.5]}
10. g5 {[%clk 0:02:41.6]} 10... hxg5 {[%clk 0:02:46.6]} 11. Nxg5 {[%clk
0:02:41.9]} 11... Rc8 {[%clk 0:02:32.6]} 12. b5 {[%clk 0:02:40.1]} 12... Ne5
{[%clk 0:02:30.2]} 13. f4 {[%clk 0:02:38.8]} 13... Ng6 {[%clk 0:02:28.4]} 14.
Nxe6 {[%clk 0:02:38.9]} 14... fxe6 {[%clk 0:02:25.9]} 15. Rxg6 {[%clk
0:02:38.8]} 15... Ne4 {[%clk 0:02:21]} 16. Qa4 {[%clk 0:02:31.3]} 16... Bh4+
{[%clk 0:01:55.7]} 17. Kd1 {[%clk 0:02:30.7]} 17... Ng3 {[%clk 0:01:51.1]} 18.
Rxg7 {[%clk 0:02:21.7]} 18... Rc7 {[%clk 0:01:46.6]} 19. Rxc7 {[%clk 0:02:16.8]}
19... Qxc7 {[%clk 0:01:47.5]} 20. Bg2 {[%clk 0:02:13.4]} 20... O-O {[%clk
0:01:18.6]} 21. c4 {[%clk 0:02:13]} 21... Bf6 {[%clk 0:01:13]} 22. Nc3 {[%clk
0:02:11.3]} 22... Qg7 {[%clk 0:01:12.3]} 23. Qxa7 {[%clk 0:02:01.6]} 23... Nxe2
{[%clk 0:01:07.9]} 24. Nxe2 {[%clk 0:01:39.5]} 24... Bxa1 {[%clk 0:00:45.8]} 25.
Qxb6 {[%clk 0:01:32.7]} 25... Rf7 {[%clk 0:00:31.4]} 26. cxd5 {[%clk 0:01:14.8]}
26... exd5 {[%clk 0:00:16]} 27. Bxd5 {[%clk 0:01:09.9]} 27... Bxd5 {[%clk
0:00:12.4]} 28. Qd8+ {[%clk 0:01:10.1]} 28... Kh7 {[%clk 0:00:09.1]} 29. Qxd5
{[%clk 0:01:10]} 29... Ra7 {[%clk 0:00:06.2]} 30. b6 {[%clk 0:01:01.1]} 30...
Rxa3 {[%clk 0:00:04.9]} 31. b7 {[%clk 0:01:01.2]} 31... Be5 {[%clk 0:00:01.4]}
32. fxe5 {[%clk 0:00:58.3]} 32... Ra2 {[%clk 0:00:01.9]} 33. Qxa2 {[%clk
0:00:56.7]} 33... Qxb7 {[%clk 0:00:01.3]} 34. Qc4 {[%clk 0:00:54.7]} 1-0

[Event "Early-Titled-Tuesday-Blitz-March-05-2024"]
[Site "Chess.com"]
[Date "2024.03.05"]
[Round "6"]
[White "rnanjo"]
[Black "StrackedAktonamee"]
[Result "0-1"]
[WhiteElo "2556"]
[BlackElo "2474"]
[TimeControl "180+1"]
[EndTime "9:08:21 PST"]
[Termination "StrackedAktonamee won by checkmate"]

1. e4 {[%clk 0:02:59.2]} 1... c6 {[%clk 0:02:57.6]} 2. d4 {[%clk 0:02:58.1]}
2... d5 {[%clk 0:02:58.5]} 3. e5 {[%clk 0:02:55.2]} 3... c5 {[%clk 0:02:58.7]}
4. dxc5 {[%clk 0:02:54.5]} 4... e6 {[%clk 0:02:59.3]} 5. Bd3 {[%clk 0:02:53.8]}
5... Nd7 {[%clk 0:02:53.5]} 6. Nf3 {[%clk 0:02:53]} 6... Nxc5 {[%clk 0:02:52.9]}
7. Be2 {[%clk 0:02:53.4]} 7... Ne7 {[%clk 0:02:50.3]} 8. O-O {[%clk 0:02:52.1]}
8... Ng6 {[%clk 0:02:50.1]} 9. Re1 {[%clk 0:02:44.4]} 9... Be7 {[%clk
0:02:50.2]} 10. a3 {[%clk 0:02:39.3]} 10... O-O {[%clk 0:02:49.5]} 11. b4 {[%clk
0:02:39.1]} 11... Nd7 {[%clk 0:02:50.2]} 12. Bb2 {[%clk 0:02:39.4]} 12... a5
{[%clk 0:02:50.9]} 13. bxa5 {[%clk 0:02:26.7]} 13... Qxa5 {[%clk 0:02:48.6]} 14.
Nbd2 {[%clk 0:02:26.6]} 14... Qc7 {[%clk 0:02:28.2]} 15. c4 {[%clk 0:02:20.7]}
15... Ndxe5 {[%clk 0:02:23.5]} 16. cxd5 {[%clk 0:02:10.8]} 16... exd5 {[%clk
0:02:06.2]} 17. Nxe5 {[%clk 0:02:08]} 17... Nxe5 {[%clk 0:02:07.1]} 18. Rc1
{[%clk 0:02:03.6]} 18... Qd6 {[%clk 0:02:06.2]} 19. Nf3 {[%clk 0:02:00.2]} 19...
Nxf3+ {[%clk 0:01:35.4]} 20. Bxf3 {[%clk 0:01:58.7]} 20... Be6 {[%clk
0:01:36.3]} 21. Be5 {[%clk 0:01:28.3]} 21... Qxa3 {[%clk 0:01:22.5]} 22. Qd4
{[%clk 0:01:27.7]} 22... Ra4 {[%clk 0:01:07.7]} 23. Qb6 {[%clk 0:01:24.9]} 23...
Rb4 {[%clk 0:00:37.7]} 24. Qc7 {[%clk 0:01:22.8]} 24... Rc4 {[%clk 0:00:32.9]}
25. Rxc4 {[%clk 0:01:19.6]} 25... dxc4 {[%clk 0:00:33.8]} 26. Bxb7 {[%clk
0:01:15.6]} 26... Rd8 {[%clk 0:00:28.5]} 27. h4 {[%clk 0:01:10]} 27... Qb4
{[%clk 0:00:27.7]} 28. Re3 {[%clk 0:01:05.8]} 28... Rd7 {[%clk 0:00:20.5]} 29.
Qb8+ {[%clk 0:00:52.5]} 29... Rd8 {[%clk 0:00:20.7]} 30. Qa7 {[%clk 0:00:52.8]}
30... Bc5 {[%clk 0:00:14.3]} 31. Qa6 {[%clk 0:00:40.7]} 31... Bxe3 {[%clk
0:00:13.6]} 32. fxe3 {[%clk 0:00:41.6]} 32... Qe1+ {[%clk 0:00:13]} 33. Kh2
{[%clk 0:00:42.1]} 33... Qxh4+ {[%clk 0:00:13.9]} 34. Kg1 {[%clk 0:00:42.5]}
34... Rd1# {[%clk 0:00:13.7]} 0-1

[Event "Early-Titled-Tuesday-Blitz-March-05-2024"]
[Site "Chess.com"]
[Date "2024.03.05"]
[Round "6"]
[White "Juwen"]
[Black "VladimirKramnik"]
[Result "0-1"]
[WhiteElo "2648"]
[BlackElo "2971"]
[TimeControl "180+1"]
[EndTime "9:08:25 PST"]
[Termination "VladimirKramnik won on time"]

1. d4 {[%clk 0:02:50.9]} 1... Nf6 {[%clk 0:02:56.9]} 2. c4 {[%clk 0:02:50.8]}
2... e6 {[%clk 0:02:57]} 3. Nf3 {[%clk 0:02:51.4]} 3... Bb4+ {[%clk 0:02:56.7]}
4. Bd2 {[%clk 0:02:50.1]} 4... Bxd2+ {[%clk 0:02:56.2]} 5. Qxd2 {[%clk
0:02:48.5]} 5... O-O {[%clk 0:02:56.1]} 6. Nc3 {[%clk 0:02:48.9]} 6... d5 {[%clk
0:02:56]} 7. e3 {[%clk 0:02:48.4]} 7... Qe7 {[%clk 0:02:56.3]} 8. Bd3 {[%clk
0:02:48.4]} 8... Rd8 {[%clk 0:02:56.8]} 9. cxd5 {[%clk 0:02:46.2]} 9... exd5
{[%clk 0:02:53.5]} 10. Ne5 {[%clk 0:02:39.2]} 10... c5 {[%clk 0:02:50]} 11. O-O
{[%clk 0:02:37.1]} 11... Nc6 {[%clk 0:02:43.3]} 12. f4 {[%clk 0:02:20.9]} 12...
cxd4 {[%clk 0:02:38.4]} 13. exd4 {[%clk 0:02:21.8]} 13... Qb4 {[%clk 0:02:30.2]}
14. Nxc6 {[%clk 0:01:43]} 14... bxc6 {[%clk 0:02:29]} 15. Kh1 {[%clk 0:01:43.8]}
15... a5 {[%clk 0:02:21.8]} 16. Rad1 {[%clk 0:01:30.7]} 16... h6 {[%clk
0:02:14.6]} 17. b3 {[%clk 0:01:18.7]} 17... Kf8 {[%clk 0:02:06.9]} 18. Bc2
{[%clk 0:00:52.2]} 18... Re8 {[%clk 0:02:05.2]} 19. Na4 {[%clk 0:00:40.6]} 19...
Bg4 {[%clk 0:02:00]} 20. Qxb4+ {[%clk 0:00:37.6]} 20... axb4 {[%clk 0:02:00.5]}
21. Rc1 {[%clk 0:00:35.5]} 21... Be2 {[%clk 0:01:54.5]} 22. Rfe1 {[%clk
0:00:24.6]} 22... Bb5 {[%clk 0:01:55.1]} 23. Kg1 {[%clk 0:00:20.4]} 23... Ng4
{[%clk 0:01:37.1]} 24. Rxe8+ {[%clk 0:00:18.9]} 24... Rxe8 {[%clk 0:01:36]} 25.
Nc5 {[%clk 0:00:18.8]} 25... Re2 {[%clk 0:01:28.9]} 26. Bd3 {[%clk 0:00:18.3]}
26... Rxa2 {[%clk 0:01:13.9]} 27. Bxb5 {[%clk 0:00:18.3]} 27... cxb5 {[%clk
0:01:14.5]} 28. Re1 {[%clk 0:00:17.8]} 28... Nf6 {[%clk 0:01:07.6]} 29. h3
{[%clk 0:00:16.1]} 29... Rd2 {[%clk 0:01:02.8]} 30. Ra1 {[%clk 0:00:15.2]} 30...
Rxd4 {[%clk 0:00:58]} 31. Ra8+ {[%clk 0:00:14.9]} 31... Ke7 {[%clk 0:00:58.7]}
32. Ra7+ {[%clk 0:00:14.6]} 32... Kd6 {[%clk 0:00:58.1]} 33. Nb7+ {[%clk
0:00:14.9]} 33... Kc7 {[%clk 0:00:53.4]} 34. Nc5+ {[%clk 0:00:02.9]} 34... Kb6
{[%clk 0:00:53.3]} 0-1

[Event "Early-Titled-Tuesday-Blitz-March-05-2024"]
[Site "Chess.com"]
[Date "2024.03.05"]
[Round "6"]
[White "Kislov_Oleg"]
[Black "DvaHrasta"]
[Result "0-1"]
[WhiteElo "2569"]
[BlackElo "2463"]
[TimeControl "180+1"]
[EndTime "9:08:33 PST"]
[Termination "DvaHrasta won by resignation"]

1. e4 {[%clk 0:03:00.9]} 1... c6 {[%clk 0:02:59.7]} 2. d4 {[%clk 0:03:00.6]}
2... d5 {[%clk 0:02:59.7]} 3. Nc3 {[%clk 0:03:00.9]} 3... dxe4 {[%clk
0:02:58.5]} 4. Nxe4 {[%clk 0:03:01.8]} 4... Nf6 {[%clk 0:02:58.5]} 5. Nxf6+
{[%clk 0:03:01.5]} 5... exf6 {[%clk 0:02:59.4]} 6. c3 {[%clk 0:03:01]} 6... Bd6
{[%clk 0:02:59.4]} 7. Bd3 {[%clk 0:03:00.7]} 7... O-O {[%clk 0:02:59.5]} 8. Qc2
{[%clk 0:03:00.6]} 8... h6 {[%clk 0:02:59.3]} 9. Ne2 {[%clk 0:03:00.2]} 9... Qc7
{[%clk 0:02:59.3]} 10. h3 {[%clk 0:02:55.3]} 10... c5 {[%clk 0:02:59]} 11. O-O
{[%clk 0:02:54.5]} 11... c4 {[%clk 0:02:59]} 12. Be4 {[%clk 0:02:53.4]} 12...
Nc6 {[%clk 0:02:59]} 13. Bd2 {[%clk 0:02:42]} 13... b5 {[%clk 0:02:58.6]} 14. a4
{[%clk 0:02:36.1]} 14... Ba6 {[%clk 0:02:57.3]} 15. axb5 {[%clk 0:02:34.5]}
15... Bxb5 {[%clk 0:02:57.2]} 16. Bf3 {[%clk 0:02:25.4]} 16... Rab8 {[%clk
0:02:44.9]} 17. Rfe1 {[%clk 0:02:18.2]} 17... a5 {[%clk 0:02:42.6]} 18. Qf5
{[%clk 0:02:12.4]} 18... Ne7 {[%clk 0:02:32]} 19. Qh5 {[%clk 0:02:05.7]} 19...
f5 {[%clk 0:02:23.8]} 20. Ng3 {[%clk 0:01:48.1]} 20... Bd7 {[%clk 0:02:04.9]}
21. Bc1 {[%clk 0:01:09.1]} 21... Rfe8 {[%clk 0:01:59.6]} 22. Bd1 {[%clk
0:00:53.2]} 22... Ng6 {[%clk 0:01:44.2]} 23. Rxe8+ {[%clk 0:00:50.9]} 23... Rxe8
{[%clk 0:01:44.3]} 24. Ne2 {[%clk 0:00:42.5]} 24... a4 {[%clk 0:01:27]} 25. g3
{[%clk 0:00:37.4]} 25... f4 {[%clk 0:01:14.1]} 26. Qf3 {[%clk 0:00:28.5]} 26...
Bc6 {[%clk 0:01:06.3]} 27. Qg4 {[%clk 0:00:28.1]} 27... f3 {[%clk 0:00:57]} 28.
d5 {[%clk 0:00:19.5]} 28... Bxd5 {[%clk 0:00:42.8]} 29. Nf4 {[%clk 0:00:19]}
29... Re1+ {[%clk 0:00:40.2]} 30. Kh2 {[%clk 0:00:19.2]} 30... Rxd1 {[%clk
0:00:38.4]} 31. Nxd5 {[%clk 0:00:18.1]} 31... Rxd5 {[%clk 0:00:33.4]} 32. Rxa4
{[%clk 0:00:18.4]} 32... Qc6 {[%clk 0:00:28.8]} 33. Be3 {[%clk 0:00:17.6]} 33...
Qxa4 {[%clk 0:00:27.8]} 0-1

[Event "Early-Titled-Tuesday-Blitz-March-05-2024"]
[Site "Chess.com"]
[Date "2024.03.05"]
[Round "6"]
[White "Ajedrez_con_German"]
[Black "Bkmzzzzz"]
[Result "1-0"]
[WhiteElo "2584"]
[BlackElo "2425"]
[TimeControl "180+1"]
[EndTime "9:08:33 PST"]
[Termination "Ajedrez_con_German won by resignation"]

1. Nf3 {[%clk 0:02:57.6]} 1... d6 {[%clk 0:02:59.5]} 2. e3 {[%clk 0:02:58.5]}
2... e5 {[%clk 0:02:59.5]} 3. d4 {[%clk 0:02:59]} 3... Nd7 {[%clk 0:02:53.3]} 4.
c4 {[%clk 0:02:58.8]} 4... g6 {[%clk 0:02:53.4]} 5. Nc3 {[%clk 0:02:59.1]} 5...
Bg7 {[%clk 0:02:53.8]} 6. Be2 {[%clk 0:02:59.4]} 6... f5 {[%clk 0:02:51.6]} 7.
O-O {[%clk 0:02:58.3]} 7... Ngf6 {[%clk 0:02:52.1]} 8. b4 {[%clk 0:02:57.8]}
8... O-O {[%clk 0:02:52.2]} 9. b5 {[%clk 0:02:57.8]} 9... c6 {[%clk 0:02:48.8]}
10. a4 {[%clk 0:02:57.2]} 10... a6 {[%clk 0:02:47.7]} 11. Ba3 {[%clk 0:02:50.8]}
11... e4 {[%clk 0:02:28.5]} 12. Nd2 {[%clk 0:02:28.5]} 12... Qe7 {[%clk
0:02:22]} 13. bxc6 {[%clk 0:02:26]} 13... bxc6 {[%clk 0:02:21.9]} 14. Rb1 {[%clk
0:02:26.8]} 14... Ne8 {[%clk 0:01:50.3]} 15. a5 {[%clk 0:02:25.1]} 15... c5
{[%clk 0:01:43.3]} 16. Nd5 {[%clk 0:02:20.7]} 16... Qf7 {[%clk 0:01:37.2]} 17.
Nb3 {[%clk 0:02:17]} 17... cxd4 {[%clk 0:01:32.5]} 18. Nxd4 {[%clk 0:02:17.3]}
18... Nc5 {[%clk 0:01:29.4]} 19. Nb3 {[%clk 0:02:09.9]} 19... Nxb3 {[%clk
0:01:20.7]} 20. Qxb3 {[%clk 0:02:09.9]} 20... Be6 {[%clk 0:01:19.2]} 21. Rfd1
{[%clk 0:01:56.7]} 21... Rd8 {[%clk 0:01:15.5]} 22. Qb6 {[%clk 0:01:51.7]} 22...
Ra8 {[%clk 0:00:45.7]} 23. Bxd6 {[%clk 0:01:11.3]} 23... Nxd6 {[%clk 0:00:45.4]}
24. Qxd6 {[%clk 0:01:12.2]} 24... Rfd8 {[%clk 0:00:28.2]} 25. Qc5 {[%clk
0:01:05.2]} 25... Qa7 {[%clk 0:00:19.4]} 26. Qxa7 {[%clk 0:00:55.9]} 26... Rxa7
{[%clk 0:00:20.3]} 27. Ne7+ {[%clk 0:00:53.6]} 27... Rxe7 {[%clk 0:00:17.3]} 28.
Rxd8+ {[%clk 0:00:53.5]} 28... Kf7 {[%clk 0:00:18]} 29. Rdb8 {[%clk 0:00:50.7]}
29... Bc3 {[%clk 0:00:18.3]} 30. R1b7 {[%clk 0:00:47.9]} 30... Bxa5 {[%clk
0:00:18.1]} 31. Rxe7+ {[%clk 0:00:46.2]} 31... Kxe7 {[%clk 0:00:19]} 32. c5
{[%clk 0:00:46]} 32... Bc7 {[%clk 0:00:17.8]} 33. Rb7 {[%clk 0:00:45.2]} 33...
Kd7 {[%clk 0:00:18.4]} 34. Bxa6 {[%clk 0:00:43.6]} 34... Kc6 {[%clk 0:00:18.3]}
35. Ra7 {[%clk 0:00:43]} 35... h5 {[%clk 0:00:17.5]} 36. Bb5+ {[%clk 0:00:41.6]}
36... Kxc5 {[%clk 0:00:16.2]} 37. Rxc7+ {[%clk 0:00:41.4]} 37... Kxb5 {[%clk
0:00:17.1]} 38. Re7 {[%clk 0:00:41.6]} 38... Bd5 {[%clk 0:00:16.3]} 39. Rg7
{[%clk 0:00:41.3]} 1-0

[Event "Early-Titled-Tuesday-Blitz-March-05-2024"]
[Site "Chess.com"]
[Date "2024.03.05"]
[Round "6"]
[White "abelmat"]
[Black "Willi_Skibbe"]
[Result "1-0"]
[WhiteElo "2060"]
[BlackElo "2299"]
[TimeControl "180+1"]
[EndTime "9:08:35 PST"]
[Termination "abelmat won on time"]

1. d4 {[%clk 0:03:00.9]} 1... d5 {[%clk 0:02:58.4]} 2. c4 {[%clk 0:03:00.5]}
2... c6 {[%clk 0:02:57.8]} 3. Nf3 {[%clk 0:03:01]} 3... Nf6 {[%clk 0:02:56.7]}
4. Nc3 {[%clk 0:03:00.8]} 4... a6 {[%clk 0:02:51.3]} 5. cxd5 {[%clk 0:02:57.6]}
5... cxd5 {[%clk 0:02:43.2]} 6. a3 {[%clk 0:02:55.2]} 6... Nc6 {[%clk
0:02:39.9]} 7. Bf4 {[%clk 0:02:54.4]} 7... Bg4 {[%clk 0:02:38.3]} 8. e3 {[%clk
0:02:53.9]} 8... e6 {[%clk 0:02:37.3]} 9. Qb3 {[%clk 0:02:50.5]} 9... Bxf3
{[%clk 0:01:26.4]} 10. gxf3 {[%clk 0:02:48.5]} 10... Na5 {[%clk 0:01:25.2]} 11.
Qd1 {[%clk 0:02:43.8]} 11... b5 {[%clk 0:01:11.9]} 12. Bd3 {[%clk 0:02:39.3]}
12... Bd6 {[%clk 0:01:07.2]} 13. Bg5 {[%clk 0:02:33.3]} 13... Be7 {[%clk
0:00:46.4]} 14. O-O {[%clk 0:02:29.4]} 14... O-O {[%clk 0:00:44.1]} 15. Kh1
{[%clk 0:02:29.3]} 15... Nc4 {[%clk 0:00:31.8]} 16. Rb1 {[%clk 0:02:28.4]} 16...
Rc8 {[%clk 0:00:30]} 17. Ne2 {[%clk 0:02:27.1]} 17... Nh5 {[%clk 0:00:23.9]} 18.
Bf4 {[%clk 0:01:58.3]} 18... Nxf4 {[%clk 0:00:16]} 19. Nxf4 {[%clk 0:01:57.9]}
19... Bd6 {[%clk 0:00:16.8]} 20. Ng2 {[%clk 0:01:39.3]} 20... Qg5 {[%clk
0:00:11.9]} 21. f4 {[%clk 0:01:37.7]} 21... Qe7 {[%clk 0:00:10.5]} 22. Rg1
{[%clk 0:01:36.6]} 22... f5 {[%clk 0:00:10.3]} 23. Ne1 {[%clk 0:01:20.2]} 23...
Kh8 {[%clk 0:00:10.9]} 24. Nf3 {[%clk 0:01:19.3]} 24... Rg8 {[%clk 0:00:08.4]}
25. Bxc4 {[%clk 0:01:15.9]} 25... dxc4 {[%clk 0:00:07.7]} 26. Qf1 {[%clk
0:00:58.2]} 26... Qb7 {[%clk 0:00:05.7]} 27. Qg2 {[%clk 0:00:46.1]} 27... c3
{[%clk 0:00:03.7]} 28. bxc3 {[%clk 0:00:41]} 28... Rxc3 {[%clk 0:00:03.2]} 29.
a4 {[%clk 0:00:38.6]} 1-0

[Event "Early-Titled-Tuesday-Blitz-March-05-2024"]
[Site "Chess.com"]
[Date "2024.03.05"]
[Round "6"]
[White "KhalilMousavi98"]
[Black "ACollins05"]
[Result "1-0"]
[WhiteElo "2824"]
[BlackElo "2617"]
[TimeControl "180+1"]
[EndTime "9:08:36 PST"]
[Termination "KhalilMousavi98 won by resignation"]

1. Nf3 {[%clk 0:02:55.9]} 1... d5 {[%clk 0:02:59.6]} 2. g3 {[%clk 0:02:55.4]}
2... Nd7 {[%clk 0:02:59.4]} 3. d4 {[%clk 0:02:52.6]} 3... Nb6 {[%clk 0:02:58]}
4. Bg2 {[%clk 0:02:50.6]} 4... Nf6 {[%clk 0:02:57.4]} 5. O-O {[%clk 0:02:50.5]}
5... Bf5 {[%clk 0:02:58]} 6. Nbd2 {[%clk 0:02:43.5]} 6... e6 {[%clk 0:02:58]} 7.
b3 {[%clk 0:02:42.7]} 7... c5 {[%clk 0:02:57.7]} 8. Bb2 {[%clk 0:02:40.8]} 8...
Rc8 {[%clk 0:02:56]} 9. c4 {[%clk 0:02:37.5]} 9... Be7 {[%clk 0:02:52.4]} 10.
dxc5 {[%clk 0:02:35.8]} 10... Bxc5 {[%clk 0:02:51.5]} 11. cxd5 {[%clk
0:02:34.1]} 11... Nbxd5 {[%clk 0:02:48.3]} 12. Nc4 {[%clk 0:02:17.8]} 12... O-O
{[%clk 0:02:43.4]} 13. Rc1 {[%clk 0:02:12.4]} 13... b5 {[%clk 0:02:38.4]} 14.
Nce5 {[%clk 0:02:08.9]} 14... a6 {[%clk 0:02:31.4]} 15. Nd4 {[%clk 0:02:03.6]}
15... Bxd4 {[%clk 0:02:15.9]} 16. Qxd4 {[%clk 0:02:01.5]} 16... Qb6 {[%clk
0:01:54.2]} 17. Qxb6 {[%clk 0:01:56.4]} 17... Nxb6 {[%clk 0:01:55.1]} 18. Nc6
{[%clk 0:01:56.9]} 18... Kh8 {[%clk 0:01:47.1]} 19. Ne7 {[%clk 0:01:42.2]} 19...
Rxc1 {[%clk 0:01:34.7]} 20. Rxc1 {[%clk 0:01:43.1]} 20... Be4 {[%clk 0:01:26.2]}
21. Bxe4 {[%clk 0:01:28.1]} 21... Nxe4 {[%clk 0:01:25.1]} 22. Rc6 {[%clk
0:01:29]} 22... Rb8 {[%clk 0:00:54.9]} 23. Bd4 {[%clk 0:00:47.2]} 23... Nd7
{[%clk 0:00:40.1]} 24. Rxa6 {[%clk 0:00:46.3]} 24... h6 {[%clk 0:00:36.3]} 25.
Ra7 {[%clk 0:00:46]} 25... Ndf6 {[%clk 0:00:34.8]} 26. Nc6 {[%clk 0:00:44.5]}
26... Rc8 {[%clk 0:00:31.1]} 27. Ne5 {[%clk 0:00:44.3]} 27... Rc2 {[%clk
0:00:21.2]} 28. Nxf7+ {[%clk 0:00:39]} 28... Kg8 {[%clk 0:00:21.8]} 29. Nd8
{[%clk 0:00:37.4]} 29... Rxe2 {[%clk 0:00:18.6]} 30. Nxe6 {[%clk 0:00:36.4]}
30... g5 {[%clk 0:00:18.4]} 31. Rg7+ {[%clk 0:00:33.6]} 31... Kh8 {[%clk
0:00:18]} 32. Rg6 {[%clk 0:00:34.2]} 32... Kh7 {[%clk 0:00:17.6]} 33. Nf8+
{[%clk 0:00:34.4]} 33... Kh8 {[%clk 0:00:17.3]} 34. Bxf6+ {[%clk 0:00:34.3]}
34... Nxf6 {[%clk 0:00:17.6]} 35. Rxf6 {[%clk 0:00:35.2]} 35... Kg7 {[%clk
0:00:18.4]} 36. Rf5 {[%clk 0:00:31.7]} 36... Rxa2 {[%clk 0:00:18.9]} 37. Ne6+
{[%clk 0:00:31.4]} 37... Kg6 {[%clk 0:00:19.8]} 38. Rxb5 {[%clk 0:00:31.7]} 1-0

[Event "Early-Titled-Tuesday-Blitz-March-05-2024"]
[Site "Chess.com"]
[Date "2024.03.05"]
[Round "6"]
[White "crazy_m_attack"]
[Black "GelmanAlexander"]
[Result "0-1"]
[WhiteElo "2491"]
[BlackElo "2675"]
[TimeControl "180+1"]
[EndTime "9:08:36 PST"]
[Termination "GelmanAlexander won by resignation"]

1. e4 {[%clk 0:03:00.9]} 1... c5 {[%clk 0:02:58.1]} 2. Nf3 {[%clk 0:03:00.3]}
2... e6 {[%clk 0:02:58.7]} 3. d4 {[%clk 0:03:00.5]} 3... cxd4 {[%clk 0:02:58.9]}
4. Nxd4 {[%clk 0:03:01.2]} 4... a6 {[%clk 0:02:59.4]} 5. Bd3 {[%clk 0:03:00.1]}
5... d6 {[%clk 0:02:59.6]} 6. Nc3 {[%clk 0:02:53.3]} 6... Nf6 {[%clk 0:02:59.3]}
7. Qe2 {[%clk 0:02:48.9]} 7... b5 {[%clk 0:02:55.2]} 8. O-O {[%clk 0:02:46.1]}
8... Bb7 {[%clk 0:02:55.3]} 9. Nb3 {[%clk 0:02:42.1]} 9... Nbd7 {[%clk
0:02:54.7]} 10. f4 {[%clk 0:02:38.4]} 10... Qc7 {[%clk 0:02:40.6]} 11. a3 {[%clk
0:02:34.3]} 11... Be7 {[%clk 0:02:34.5]} 12. Be3 {[%clk 0:02:33.5]} 12... h5
{[%clk 0:02:33.3]} 13. h3 {[%clk 0:02:33]} 13... h4 {[%clk 0:02:33.3]} 14. Kh2
{[%clk 0:02:26.3]} 14... Nh5 {[%clk 0:02:31.7]} 15. Qf2 {[%clk 0:02:26.3]} 15...
Ng3 {[%clk 0:02:30.1]} 16. Rfe1 {[%clk 0:02:26.3]} 16... Nf6 {[%clk 0:02:20.1]}
17. Bb6 {[%clk 0:02:08.1]} 17... Qd7 {[%clk 0:02:17.3]} 18. Bd4 {[%clk
0:02:05.6]} 18... Rc8 {[%clk 0:02:13.9]} 19. Rad1 {[%clk 0:02:01.4]} 19... Nfh5
{[%clk 0:02:05.8]} 20. f5 {[%clk 0:01:52.8]} 20... e5 {[%clk 0:01:58.9]} 21. Be3
{[%clk 0:01:51.3]} 21... Qc7 {[%clk 0:01:48.2]} 22. Bb6 {[%clk 0:01:44.1]} 22...
Qb8 {[%clk 0:01:47.1]} 23. a4 {[%clk 0:01:30.8]} 23... b4 {[%clk 0:01:45.7]} 24.
Na2 {[%clk 0:01:29.2]} 24... d5 {[%clk 0:01:35.7]} 25. exd5 {[%clk 0:01:25.8]}
25... e4 {[%clk 0:01:33.6]} 26. Ba7 {[%clk 0:01:07.9]} 26... Qd6 {[%clk
0:01:18.8]} 27. Kg1 {[%clk 0:00:52.1]} 27... exd3 {[%clk 0:00:48.2]} 28. Rxd3
{[%clk 0:00:53]} 28... O-O {[%clk 0:00:42.4]} 29. Rde3 {[%clk 0:00:18.1]} 29...
Bg5 {[%clk 0:00:39.1]} 30. Rd3 {[%clk 0:00:17.2]} 30... Nf4 {[%clk 0:00:34.6]}
31. Rdd1 {[%clk 0:00:16]} 31... Rfe8 {[%clk 0:00:28.6]} 32. Bc5 {[%clk
0:00:14.9]} 32... Rxe1+ {[%clk 0:00:25.6]} 33. Qxe1 {[%clk 0:00:14.3]} 33...
Rxc5 {[%clk 0:00:24.5]} 0-1